[Event "Titled Tuesday Blitz April 25 Early 2023"]
[White "Coelho, Ramyres Santana"]
[Black "Odegov, Artem"]
[WhiteFideId "2120690"]
[BlackFideId "34183644"]
[WhiteElo "1888"]
[BlackElo "2300"]
[Result "0-1"]
[Round "01"]
[TimeControl "180+2"]
[Date "2023.04.25"]
[WhiteClock "0:00:08"]
[BlackClock "0:00:10"]

1. e4 {[%clk 0:03:00]}  c5 {[%clk 0:02:56]} 2. Nf3 {[%clk 0:02:59]}  e6 {[%clk 0:02:56]} 3. d4 {[%clk 0:02:57]}  cxd4 {[%clk 0:02:57]} 4. c3 {[%clk 0:02:57]}  Nf6 {[%clk 0:02:55]} 5. e5 {[%clk 0:02:56]}  Nd5 {[%clk 0:02:55]} 6. cxd4 {[%clk 0:02:56]}  Nc6 {[%clk 0:02:55]} 7. Nc3 {[%clk 0:02:56]}  Nxc3 {[%clk 0:02:54]} 8. bxc3 {[%clk 0:02:57]}  d5 {[%clk 0:02:55]} 9. Bd3 {[%clk 0:02:57]}  Be7 {[%clk 0:02:54]} 10. O-O {[%clk 0:02:58]}  O-O {[%clk 0:02:52]} 11. Qc2 {[%clk 0:02:55]}  h6 {[%clk 0:02:52]} 12. h3 {[%clk 0:02:53]}  Bd7 {[%clk 0:02:52]} 13. Nh2 {[%clk 0:02:53]}  Rc8 {[%clk 0:02:50]} 14. Qe2 {[%clk 0:02:51]}  Na5 {[%clk 0:02:44]} 15. Bd2 {[%clk 0:02:28]}  Nc4 {[%clk 0:02:41]} 16. Be1 {[%clk 0:02:18]}  Ba3 {[%clk 0:02:14]} 17. f4 {[%clk 0:02:12]}  Nb2 {[%clk 0:02:12]} 18. Bc2 {[%clk 0:01:57]}  a6 {[%clk 0:02:02]} 19. Qh5 {[%clk 0:01:45]}  Be8 {[%clk 0:01:32]} 20. Ng4 {[%clk 0:01:39]}  f5 {[%clk 0:01:29]} 21. Nxh6+ {[%clk 0:01:30]}  gxh6 {[%clk 0:01:28]} 22. Qxh6 {[%clk 0:01:28]}  Rc7 {[%clk 0:01:18]} 23. Qxe6+ {[%clk 0:01:25]}  Kh8 {[%clk 0:00:59]} 24. Qh6+ {[%clk 0:01:19]}  Rh7 {[%clk 0:01:00]} 25. Qg5 {[%clk 0:01:14]}  Be7 {[%clk 0:00:54]} 26. Qg3 {[%clk 0:01:10]}  Nc4 {[%clk 0:00:52]} 27. Rb1 {[%clk 0:01:05]}  b5 {[%clk 0:00:42]} 28. Rf3 {[%clk 0:01:04]}  Bh5 {[%clk 0:00:40]} 29. Rd3 {[%clk 0:01:02]}  Rg7 {[%clk 0:00:40]} 30. Qf2 {[%clk 0:01:00]}  Rfg8 {[%clk 0:00:41]} 31. g3 {[%clk 0:00:56]}  Qb6 {[%clk 0:00:27]} 32. Kh2 {[%clk 0:00:55]}  Qh6 {[%clk 0:00:26]} 33. Bd1 {[%clk 0:00:51]}  Bxd1 {[%clk 0:00:23]} 34. Rbxd1 {[%clk 0:00:52]}  Ba3 {[%clk 0:00:15]} 35. Rf3 {[%clk 0:00:51]}  Be7 {[%clk 0:00:12]} 36. Bd2 {[%clk 0:00:49]}  Rh7 {[%clk 0:00:12]} 37. Qg2 {[%clk 0:00:47]}  Rhg7 {[%clk 0:00:10]} 38. Be1 {[%clk 0:00:47]}  a5 {[%clk 0:00:09]} 39. Rdd3 {[%clk 0:00:47]}  a4 {[%clk 0:00:09]} 40. Kg1 {[%clk 0:00:46]}  Rh7 {[%clk 0:00:09]} 41. g4 {[%clk 0:00:42]}  a3 {[%clk 0:00:06]} 42. g5 {[%clk 0:00:41]}  Qg6 {[%clk 0:00:06]} 43. h4 {[%clk 0:00:41]}  Qh5 {[%clk 0:00:06]} 44. Rd1 {[%clk 0:00:39]}  Bf8 {[%clk 0:00:05]} 45. Rdd3 {[%clk 0:00:39]}  Rb7 {[%clk 0:00:05]} 46. Qh3 {[%clk 0:00:36]}  Qg4+ {[%clk 0:00:04]} 47. Qxg4 {[%clk 0:00:35]}  fxg4 {[%clk 0:00:05]} 48. Rg3 {[%clk 0:00:36]}  b4 {[%clk 0:00:05]} 49. cxb4 {[%clk 0:00:36]}  Bxb4 {[%clk 0:00:06]} 50. Rb3 {[%clk 0:00:34]}  Rgb8 {[%clk 0:00:05]} 51. Bxb4 {[%clk 0:00:18]}  Rxb4 {[%clk 0:00:06]} 52. Rxb4 {[%clk 0:00:17]}  Rxb4 {[%clk 0:00:07]} 53. Rxg4 {[%clk 0:00:15]}  Rb1+ {[%clk 0:00:06]} 54. Kh2 {[%clk 0:00:13]}  Rb2+ {[%clk 0:00:07]} 55. Kg3 {[%clk 0:00:12]}  Rxa2 {[%clk 0:00:06]} 56. g6 {[%clk 0:00:13]}  Rg2+ {[%clk 0:00:05]} 57. Kxg2 {[%clk 0:00:10]}  Ne3+ {[%clk 0:00:05]} 58. Kf3 {[%clk 0:00:11]}  Nxg4 {[%clk 0:00:06]} 59. Kxg4 {[%clk 0:00:12]}  a2 {[%clk 0:00:06]} 60. f5 {[%clk 0:00:12]}  a1=Q {[%clk 0:00:07]} 61. f6 {[%clk 0:00:12]}  Qc1 {[%clk 0:00:06]} 62. Kf5 {[%clk 0:00:11]}  Qc6 {[%clk 0:00:05]} 63. e6 {[%clk 0:00:10]}  Qc2+ {[%clk 0:00:05]} 64. Kg5 {[%clk 0:00:09]}  Qe4 {[%clk 0:00:04]} 65. h5 {[%clk 0:00:05]}  Qxe6 {[%clk 0:00:04]} 66. h6 {[%clk 0:00:03]}  Qe3+ {[%clk 0:00:05]} 67. Kh5 {[%clk 0:00:02]}  Qf3+ {[%clk 0:00:04]} 68. Kg5 {[%clk 0:00:03]}  Qe3+ {[%clk 0:00:05]} 69. Kh5 {[%clk 0:00:03]}  Qxd4 {[%clk 0:00:04]} 70. h7 {[%clk 0:00:02]}  Qxf6 {[%clk 0:00:04]} 71. Kh6 {[%clk 0:00:03]}  Qg7+ {[%clk 0:00:04]} 72. Kg5 {[%clk 0:00:03]}  d4 {[%clk 0:00:05]} 73. Kf4 {[%clk 0:00:04]}  d3 {[%clk 0:00:06]} 74. Ke3 {[%clk 0:00:05]}  Qxg6 {[%clk 0:00:06]} 75. Kd2 {[%clk 0:00:06]}  Kxh7 {[%clk 0:00:07]} 76. Ke3 {[%clk 0:00:06]}  Qe4+ {[%clk 0:00:08]} 77. Kd2 {[%clk 0:00:06]}  Qe2+ {[%clk 0:00:08]} 78. Kc3 {[%clk 0:00:06]}  d2 {[%clk 0:00:08]} 79. Kc2 {[%clk 0:00:06]}  d1=Q+ {[%clk 0:00:09]} 80. Kc3 {[%clk 0:00:07]}  Qec2+ {[%clk 0:00:09]} 81. Kb4 {[%clk 0:00:07]}  Qdb1+ {[%clk 0:00:09]} 82. Ka3 {[%clk 0:00:08]}  Qca2# {[%clk 0:00:10]} 0-1


[Site "https://www.chess.com"]

[Event "Titled Tuesday Blitz April 25 Early 2023"]
[White "Osinenko, Anton"]
[Black "Benaddi, Mouhcine"]
[WhiteFideId "4158970"]
[BlackFideId "9001050"]
[WhiteElo "2294"]
[BlackElo "2036"]
[Result "1-0"]
[Round "01"]
[TimeControl "180+2"]
[Date "2023.04.25"]
[WhiteClock "0:01:17"]
[BlackClock "0:00:30"]

1. e4 {[%clk 0:02:59]}  c6 {[%clk 0:03:00]} 2. Nc3 {[%clk 0:02:57]}  d5 {[%clk 0:03:00]} 3. d4 {[%clk 0:02:57]}  dxe4 {[%clk 0:02:59]} 4. Nxe4 {[%clk 0:02:58]}  Bf5 {[%clk 0:02:58]} 5. Ng3 {[%clk 0:02:58]}  Bg6 {[%clk 0:02:59]} 6. Nf3 {[%clk 0:02:45]}  Nf6 {[%clk 0:02:59]} 7. Bd3 {[%clk 0:02:45]}  e6 {[%clk 0:02:56]} 8. c3 {[%clk 0:02:44]}  Nbd7 {[%clk 0:02:55]} 9. O-O {[%clk 0:02:44]}  Qc7 {[%clk 0:02:54]} 10. a4 {[%clk 0:02:41]}  Bd6 {[%clk 0:02:52]} 11. Re1 {[%clk 0:02:38]}  Bxd3 {[%clk 0:02:43]} 12. Qxd3 {[%clk 0:02:37]}  O-O {[%clk 0:02:32]} 13. Bd2 {[%clk 0:02:34]}  Rad8 {[%clk 0:02:25]} 14. Ne4 {[%clk 0:02:33]}  Nxe4 {[%clk 0:02:16]} 15. Qxe4 {[%clk 0:02:34]}  Nf6 {[%clk 0:02:13]} 16. Qh4 {[%clk 0:02:34]}  c5 {[%clk 0:02:05]} 17. Bg5 {[%clk 0:02:30]}  Be7 {[%clk 0:02:04]} 18. Qg3 {[%clk 0:02:17]}  Qxg3 {[%clk 0:02:02]} 19. hxg3 {[%clk 0:02:18]}  cxd4 {[%clk 0:02:03]} 20. Nxd4 {[%clk 0:02:19]}  h6 {[%clk 0:01:56]} 21. Bf4 {[%clk 0:02:08]}  Bc5 {[%clk 0:01:54]} 22. Nb3 {[%clk 0:01:54]}  Bd6 {[%clk 0:01:40]} 23. Be3 {[%clk 0:01:49]}  b6 {[%clk 0:01:37]} 24. a5 {[%clk 0:01:47]}  Nd5 {[%clk 0:01:35]} 25. Bd4 {[%clk 0:01:44]}  Rb8 {[%clk 0:01:22]} 26. Nd2 {[%clk 0:01:40]}  bxa5 {[%clk 0:01:17]} 27. Rxa5 {[%clk 0:01:36]}  Rxb2 {[%clk 0:01:15]} 28. Nc4 {[%clk 0:01:36]}  Bc7 {[%clk 0:01:09]} 29. Rxd5 {[%clk 0:01:28]}  exd5 {[%clk 0:01:05]} 30. Nxb2 {[%clk 0:01:28]}  a5 {[%clk 0:01:04]} 31. Na4 {[%clk 0:01:27]}  Rb8 {[%clk 0:01:01]} 32. Re7 {[%clk 0:01:24]}  Bd6 {[%clk 0:01:00]} 33. Ra7 {[%clk 0:01:24]}  Rb1+ {[%clk 0:00:51]} 34. Kh2 {[%clk 0:01:24]}  Ra1 {[%clk 0:00:50]} 35. Rxa5 {[%clk 0:01:23]}  Bc7 {[%clk 0:00:43]} 36. Ra7 {[%clk 0:01:21]}  Bd6 {[%clk 0:00:40]} 37. Nb2 {[%clk 0:01:20]}  Rb1 {[%clk 0:00:32]} 38. Nd3 {[%clk 0:01:20]}  Rd1 {[%clk 0:00:30]} 39. Ne5 {[%clk 0:01:17]} 1-0


[Site "https://www.chess.com"]

[Event "Titled Tuesday Blitz April 25 Early 2023"]
[White "Han, Yichen"]
[Black "Amitpal, Singh"]
[WhiteFideId "1054430"]
[BlackFideId "5012899"]
[WhiteElo "2342"]
[BlackElo "2107"]
[Result "1-0"]
[Round "01"]
[TimeControl "180+2"]
[Date "2023.04.25"]
[WhiteClock "0:00:41"]
[BlackClock "0:00:27"]

1. d4 {[%clk 0:02:55]}  Nf6 {[%clk 0:02:59]} 2. Nf3 {[%clk 0:02:53]}  g6 {[%clk 0:02:59]} 3. c4 {[%clk 0:02:50]}  Bg7 {[%clk 0:02:59]} 4. Nc3 {[%clk 0:02:46]}  O-O {[%clk 0:02:59]} 5. e4 {[%clk 0:02:47]}  d6 {[%clk 0:02:59]} 6. Be2 {[%clk 0:02:47]}  e5 {[%clk 0:02:59]} 7. O-O {[%clk 0:02:47]}  Nc6 {[%clk 0:03:00]} 8. dxe5 {[%clk 0:02:45]}  dxe5 {[%clk 0:02:54]} 9. Bg5 {[%clk 0:02:41]}  Qxd1 {[%clk 0:02:20]} 10. Rfxd1 {[%clk 0:02:42]}  Ne8 {[%clk 0:02:02]} 11. Nd5 {[%clk 0:02:34]}  f6 {[%clk 0:01:57]} 12. Be3 {[%clk 0:02:33]}  Kf7 {[%clk 0:01:49]} 13. b4 {[%clk 0:02:06]}  Be6 {[%clk 0:01:31]} 14. b5 {[%clk 0:01:59]}  Bxd5 {[%clk 0:01:28]} 15. cxd5 {[%clk 0:01:51]}  Ne7 {[%clk 0:01:22]} 16. Rac1 {[%clk 0:01:45]}  Nc8 {[%clk 0:01:22]} 17. h4 {[%clk 0:01:41]}  Ncd6 {[%clk 0:01:19]} 18. Nd2 {[%clk 0:01:41]}  h5 {[%clk 0:01:08]} 19. f3 {[%clk 0:01:28]}  Rh8 {[%clk 0:01:07]} 20. a4 {[%clk 0:01:27]}  Bh6 {[%clk 0:01:06]} 21. Bf2 {[%clk 0:01:19]}  Rh7 {[%clk 0:00:58]} 22. Rc2 {[%clk 0:01:09]}  Ke7 {[%clk 0:00:54]} 23. Nc4 {[%clk 0:01:07]}  Kd7 {[%clk 0:00:50]} 24. Na5 {[%clk 0:01:02]}  f5 {[%clk 0:00:47]} 25. Bd3 {[%clk 0:00:58]}  Rf7 {[%clk 0:00:43]} 26. Nb3 {[%clk 0:00:55]}  b6 {[%clk 0:00:38]} 27. Nd2 {[%clk 0:00:42]}  Nf6 {[%clk 0:00:32]} 28. Nc4 {[%clk 0:00:41]}  fxe4 {[%clk 0:00:27]} 29. Nxe5+ {[%clk 0:00:41]} 1-0


[Site "https://www.chess.com"]

[Event "Titled Tuesday Blitz April 25 Early 2023"]
[White "Aanna12"]
[Black "Zomorrodian, Eilia"]
[BlackFideId "12551805"]
[WhiteElo "2206"]
[BlackElo "2078"]
[Result "0-1"]
[Round "01"]
[TimeControl "180+2"]
[Date "2023.04.25"]
[WhiteClock "0:00:02"]
[BlackClock "0:00:22"]

1. e4 {[%clk 0:02:58]}  c5 {[%clk 0:02:59]} 2. Nc3 {[%clk 0:02:57]}  a6 {[%clk 0:02:59]} 3. g3 {[%clk 0:02:55]}  b5 {[%clk 0:02:59]} 4. Bg2 {[%clk 0:02:53]}  Bb7 {[%clk 0:02:58]} 5. d3 {[%clk 0:02:50]}  e6 {[%clk 0:02:56]} 6. Nh3 {[%clk 0:02:49]}  Nf6 {[%clk 0:02:56]} 7. O-O {[%clk 0:02:46]}  d5 {[%clk 0:02:57]} 8. exd5 {[%clk 0:02:43]}  Nxd5 {[%clk 0:02:56]} 9. Ne4 {[%clk 0:02:38]}  Nd7 {[%clk 0:02:54]} 10. c4 {[%clk 0:02:24]}  N5b6 {[%clk 0:02:13]} 11. b3 {[%clk 0:02:04]}  Be7 {[%clk 0:01:54]} 12. Nd6+ {[%clk 0:01:55]}  Bxd6 {[%clk 0:01:52]} 13. Bxb7 {[%clk 0:01:55]}  Ra7 {[%clk 0:01:49]} 14. Bg2 {[%clk 0:01:54]}  O-O {[%clk 0:01:42]} 15. f4 {[%clk 0:01:25]}  Be7 {[%clk 0:01:30]} 16. Nf2 {[%clk 0:00:59]}  Bf6 {[%clk 0:01:29]} 17. Rb1 {[%clk 0:00:58]}  Bd4 {[%clk 0:01:29]} 18. Kh1 {[%clk 0:00:58]}  Nf6 {[%clk 0:01:26]} 19. Ne4 {[%clk 0:00:57]}  Nxe4 {[%clk 0:01:17]} 20. Bxe4 {[%clk 0:00:53]}  g6 {[%clk 0:01:07]} 21. Qe2 {[%clk 0:00:24]}  Qf6 {[%clk 0:00:55]} 22. Be3 {[%clk 0:00:16]}  Rd8 {[%clk 0:00:54]} 23. Rbd1 {[%clk 0:00:15]}  b4 {[%clk 0:00:54]} 24. g4 {[%clk 0:00:13]}  Bxe3 {[%clk 0:00:41]} 25. Qxe3 {[%clk 0:00:13]}  Qd4 {[%clk 0:00:42]} 26. Qg3 {[%clk 0:00:10]}  Qd6 {[%clk 0:00:25]} 27. Qh3 {[%clk 0:00:07]}  Nd7 {[%clk 0:00:20]} 28. f5 {[%clk 0:00:07]}  Ne5 {[%clk 0:00:21]} 29. fxg6 {[%clk 0:00:02]}  hxg6 {[%clk 0:00:22]} 0-1


[Site "https://www.chess.com"]

[Event "Titled Tuesday Blitz April 25 Early 2023"]
[White "Ferenc83"]
[Black "Goldin, Roman"]
[BlackFideId "2803860"]
[WhiteElo "2575"]
[BlackElo "2312"]
[Result "1/2-1/2"]
[Round "01"]
[TimeControl "180+2"]
[Date "2023.04.25"]
[WhiteClock "0:00:14"]
[BlackClock "0:00:06"]

1. e4 {[%clk 0:02:58]}  Nc6 {[%clk 0:02:59]} 2. d4 {[%clk 0:02:56]}  e5 {[%clk 0:02:59]} 3. d5 {[%clk 0:02:54]}  Nce7 {[%clk 0:02:59]} 4. c4 {[%clk 0:02:53]}  Ng6 {[%clk 0:02:58]} 5. Nc3 {[%clk 0:02:54]}  Nf6 {[%clk 0:02:59]} 6. g3 {[%clk 0:02:52]}  Bb4 {[%clk 0:02:57]} 7. Bg2 {[%clk 0:02:50]}  Bxc3+ {[%clk 0:02:56]} 8. bxc3 {[%clk 0:02:49]}  d6 {[%clk 0:02:57]} 9. Ne2 {[%clk 0:02:48]}  O-O {[%clk 0:02:56]} 10. O-O {[%clk 0:02:47]}  b6 {[%clk 0:02:55]} 11. h3 {[%clk 0:02:42]}  Nd7 {[%clk 0:02:53]} 12. f4 {[%clk 0:02:40]}  exf4 {[%clk 0:02:48]} 13. gxf4 {[%clk 0:02:34]}  f5 {[%clk 0:02:45]} 14. exf5 {[%clk 0:02:27]}  Nh4 {[%clk 0:02:45]} 15. Ng3 {[%clk 0:02:23]}  Nc5 {[%clk 0:02:42]} 16. Be3 {[%clk 0:02:20]}  Nxf5 {[%clk 0:02:38]} 17. Nxf5 {[%clk 0:02:15]}  Bxf5 {[%clk 0:02:36]} 18. Bd4 {[%clk 0:02:15]}  Qh4 {[%clk 0:02:26]} 19. Qd2 {[%clk 0:02:01]}  Bxh3 {[%clk 0:02:21]} 20. Rae1 {[%clk 0:01:52]}  Rae8 {[%clk 0:02:09]} 21. Bxh3 {[%clk 0:01:30]}  Qxh3 {[%clk 0:02:04]} 22. Qg2 {[%clk 0:01:30]}  Qxg2+ {[%clk 0:01:51]} 23. Kxg2 {[%clk 0:01:31]}  Kf7 {[%clk 0:01:48]} 24. Kf3 {[%clk 0:01:25]}  g6 {[%clk 0:01:31]} 25. Rh1 {[%clk 0:01:22]}  Rxe1 {[%clk 0:01:26]} 26. Rxe1 {[%clk 0:01:21]}  Re8 {[%clk 0:01:26]} 27. Rh1 {[%clk 0:01:20]}  h5 {[%clk 0:01:23]} 28. f5 {[%clk 0:01:20]}  Ne4 {[%clk 0:01:16]} 29. Kf4 {[%clk 0:01:09]}  g5+ {[%clk 0:00:59]} 30. Kf3 {[%clk 0:01:08]}  Nd2+ {[%clk 0:00:51]} 31. Kg3 {[%clk 0:01:00]}  h4+ {[%clk 0:00:25]} 32. Kg4 {[%clk 0:00:57]}  Ne4 {[%clk 0:00:23]} 33. Rf1 {[%clk 0:00:26]}  Nd2 {[%clk 0:00:16]} 34. Rf2 {[%clk 0:00:23]}  Nxc4 {[%clk 0:00:13]} 35. Kxg5 {[%clk 0:00:22]}  h3 {[%clk 0:00:09]} 36. f6 {[%clk 0:00:22]}  Rg8+ {[%clk 0:00:09]} 37. Kf5 {[%clk 0:00:21]}  Rg2 {[%clk 0:00:07]} 38. Rf3 {[%clk 0:00:20]}  h2 {[%clk 0:00:07]} 39. Rh3 {[%clk 0:00:20]}  Nd2 {[%clk 0:00:07]} 40. Rh7+ {[%clk 0:00:19]}  Kf8 {[%clk 0:00:07]} 41. Rh8+ {[%clk 0:00:18]}  Kf7 {[%clk 0:00:06]} 42. Rh7+ {[%clk 0:00:18]}  Kf8 {[%clk 0:00:07]} 43. Ke6 {[%clk 0:00:18]}  Re2+ {[%clk 0:00:05]} 44. Kf5 {[%clk 0:00:16]}  Nf3 {[%clk 0:00:05]} 45. Rh8+ {[%clk 0:00:15]}  Kf7 {[%clk 0:00:05]} 46. Rh7+ {[%clk 0:00:15]}  Kf8 {[%clk 0:00:05]} 47. Rh8+ {[%clk 0:00:15]}  Kf7 {[%clk 0:00:06]} 48. Rh7+ {[%clk 0:00:14]}  Kf8 {[%clk 0:00:06]} 1/2-1/2


[Site "https://www.chess.com"]

[Event "Titled Tuesday Blitz April 25 Early 2023"]
[White "Cesar Maestre, Bernardo"]
[Black "Mordechai, Hanan"]
[WhiteFideId "24542547"]
[BlackFideId "2804166"]
[WhiteElo "2271"]
[BlackElo "2324"]
[Result "0-1"]
[Round "01"]
[TimeControl "180+2"]
[Date "2023.04.25"]
[WhiteClock "0:00:07"]
[BlackClock "0:00:11"]

1. e4 {[%clk 0:02:58]}  c5 {[%clk 0:02:58]} 2. Nf3 {[%clk 0:02:58]}  d6 {[%clk 0:02:58]} 3. Bb5+ {[%clk 0:02:56]}  Bd7 {[%clk 0:02:57]} 4. Bxd7+ {[%clk 0:02:55]}  Qxd7 {[%clk 0:02:58]} 5. O-O {[%clk 0:02:56]}  Nf6 {[%clk 0:02:58]} 6. Re1 {[%clk 0:02:54]}  Nc6 {[%clk 0:02:54]} 7. c4 {[%clk 0:02:53]}  g6 {[%clk 0:02:54]} 8. Nc3 {[%clk 0:02:53]}  Bg7 {[%clk 0:02:54]} 9. d3 {[%clk 0:02:50]}  O-O {[%clk 0:02:54]} 10. Bg5 {[%clk 0:02:49]}  a6 {[%clk 0:02:52]} 11. Qd2 {[%clk 0:02:46]}  Rfe8 {[%clk 0:02:48]} 12. Rad1 {[%clk 0:02:13]}  Rab8 {[%clk 0:02:46]} 13. b3 {[%clk 0:02:09]}  b5 {[%clk 0:02:45]} 14. cxb5 {[%clk 0:02:05]}  axb5 {[%clk 0:02:44]} 15. d4 {[%clk 0:02:05]}  b4 {[%clk 0:02:31]} 16. Na4 {[%clk 0:02:05]}  cxd4 {[%clk 0:02:24]} 17. Nxd4 {[%clk 0:02:04]}  Nxd4 {[%clk 0:02:01]} 18. Qxd4 {[%clk 0:02:05]}  h6 {[%clk 0:02:02]} 19. Bc1 {[%clk 0:01:42]}  Qe6 {[%clk 0:01:53]} 20. Qd3 {[%clk 0:01:28]}  Nd7 {[%clk 0:01:50]} 21. Bb2 {[%clk 0:01:24]}  Ne5 {[%clk 0:01:44]} 22. Qg3 {[%clk 0:01:17]}  Rec8 {[%clk 0:01:37]} 23. f4 {[%clk 0:01:14]}  Nc6 {[%clk 0:00:48]} 24. f5 {[%clk 0:01:12]}  Qd7 {[%clk 0:00:39]} 25. fxg6 {[%clk 0:01:10]}  f6 {[%clk 0:00:37]} 26. Kh1 {[%clk 0:00:57]}  Ne5 {[%clk 0:00:35]} 27. Bxe5 {[%clk 0:00:51]}  fxe5 {[%clk 0:00:36]} 28. Re2 {[%clk 0:00:27]}  Qe6 {[%clk 0:00:35]} 29. h4 {[%clk 0:00:23]}  h5 {[%clk 0:00:33]} 30. Rf1 {[%clk 0:00:22]}  Rf8 {[%clk 0:00:33]} 31. Ref2 {[%clk 0:00:21]}  Rxf2 {[%clk 0:00:29]} 32. Rxf2 {[%clk 0:00:22]}  Rf8 {[%clk 0:00:24]} 33. Rxf8+ {[%clk 0:00:20]}  Bxf8 {[%clk 0:00:25]} 34. Nb2 {[%clk 0:00:20]}  Kg7 {[%clk 0:00:25]} 35. Nd3 {[%clk 0:00:20]}  Qf6 {[%clk 0:00:18]} 36. Nxb4 {[%clk 0:00:19]}  e6 {[%clk 0:00:19]} 37. Nc2 {[%clk 0:00:18]}  d5 {[%clk 0:00:19]} 38. exd5 {[%clk 0:00:18]}  exd5 {[%clk 0:00:20]} 39. Ne3 {[%clk 0:00:18]}  d4 {[%clk 0:00:17]} 40. Nc4 {[%clk 0:00:18]}  e4 {[%clk 0:00:11]} 41. Qe5 {[%clk 0:00:12]}  Qxe5 {[%clk 0:00:11]} 42. Nxe5 {[%clk 0:00:13]}  d3 {[%clk 0:00:11]} 43. Nc4 {[%clk 0:00:12]}  Bb4 {[%clk 0:00:11]} 44. Kg1 {[%clk 0:00:11]}  d2 {[%clk 0:00:11]} 45. Nxd2 {[%clk 0:00:11]}  Bxd2 {[%clk 0:00:12]} 46. Kf2 {[%clk 0:00:12]}  Kxg6 {[%clk 0:00:12]} 47. Ke2 {[%clk 0:00:12]}  Bc1 {[%clk 0:00:11]} 48. a4 {[%clk 0:00:11]}  Kf5 {[%clk 0:00:12]} 49. a5 {[%clk 0:00:11]}  Bb2 {[%clk 0:00:11]} 50. b4 {[%clk 0:00:09]}  Bc3 {[%clk 0:00:11]} 51. a6 {[%clk 0:00:08]}  Bd4 {[%clk 0:00:11]} 52. b5 {[%clk 0:00:09]}  Bb6 {[%clk 0:00:10]} 53. Kd2 {[%clk 0:00:06]}  Kf4 {[%clk 0:00:11]} 54. Ke2 {[%clk 0:00:07]}  Kg3 {[%clk 0:00:11]} 55. Kf1 {[%clk 0:00:07]}  e3 {[%clk 0:00:11]} 56. Ke2 {[%clk 0:00:07]}  Kxg2 {[%clk 0:00:11]} 0-1


[Site "https://www.chess.com"]

[Event "Titled Tuesday Blitz April 25 Early 2023"]
[White "Moksh Amit Doshi"]
[Black "Kuchava, Ana"]
[WhiteFideId "25064967"]
[BlackFideId "13605348"]
[WhiteElo "2297"]
[BlackElo "2001"]
[Result "1-0"]
[Round "01"]
[TimeControl "180+2"]
[Date "2023.04.25"]
[WhiteClock "0:00:08"]
[BlackClock "0:00:07"]

1. d4 {[%clk 0:02:19]}  d5 {[%clk 0:02:58]} 2. Nf3 {[%clk 0:02:17]}  Nf6 {[%clk 0:02:58]} 3. c4 {[%clk 0:02:16]}  e6 {[%clk 0:02:58]} 4. Nc3 {[%clk 0:02:14]}  Be7 {[%clk 0:02:58]} 5. g3 {[%clk 0:02:12]}  O-O {[%clk 0:02:53]} 6. Bg2 {[%clk 0:02:12]}  dxc4 {[%clk 0:02:43]} 7. Ne5 {[%clk 0:02:09]}  Nbd7 {[%clk 0:02:17]} 8. Nxc4 {[%clk 0:02:07]}  c5 {[%clk 0:02:08]} 9. O-O {[%clk 0:01:58]}  cxd4 {[%clk 0:02:02]} 10. Qxd4 {[%clk 0:01:57]}  Nb6 {[%clk 0:01:51]} 11. Qxd8 {[%clk 0:01:47]}  Bxd8 {[%clk 0:01:52]} 12. Nd6 {[%clk 0:01:46]}  Rb8 {[%clk 0:01:47]} 13. Bf4 {[%clk 0:01:39]}  Nbd5 {[%clk 0:01:45]} 14. Nxc8 {[%clk 0:00:48]}  Rxc8 {[%clk 0:01:44]} 15. Be5 {[%clk 0:00:45]}  Bc7 {[%clk 0:01:21]} 16. Bd4 {[%clk 0:00:31]}  Rfd8 {[%clk 0:01:14]} 17. Bxa7 {[%clk 0:00:30]}  Nxc3 {[%clk 0:01:10]} 18. bxc3 {[%clk 0:00:31]}  Be5 {[%clk 0:01:09]} 19. Rab1 {[%clk 0:00:29]}  Rxc3 {[%clk 0:00:53]} 20. Rxb7 {[%clk 0:00:29]}  Ra3 {[%clk 0:00:50]} 21. Bb6 {[%clk 0:00:25]}  Rd2 {[%clk 0:00:31]} 22. f4 {[%clk 0:00:19]}  Bd6 {[%clk 0:00:24]} 23. Rc1 {[%clk 0:00:19]}  h6 {[%clk 0:00:20]} 24. Bf3 {[%clk 0:00:17]}  Raxa2 {[%clk 0:00:20]} 25. Be3 {[%clk 0:00:15]}  Rdc2 {[%clk 0:00:18]} 26. Rcb1 {[%clk 0:00:14]}  Nd5 {[%clk 0:00:15]} 27. Bf2 {[%clk 0:00:12]}  Nc3 {[%clk 0:00:14]} 28. R1b6 {[%clk 0:00:09]}  Rd2 {[%clk 0:00:12]} 29. Be3 {[%clk 0:00:07]}  Rd1+ {[%clk 0:00:12]} 30. Kf2 {[%clk 0:00:08]}  Nd5 {[%clk 0:00:11]} 31. Rxd6 {[%clk 0:00:07]}  Nxe3 {[%clk 0:00:10]} 32. Rb8+ {[%clk 0:00:07]}  Kh7 {[%clk 0:00:09]} 33. Be4+ {[%clk 0:00:08]}  f5 {[%clk 0:00:08]} 34. Bd3 {[%clk 0:00:08]}  Ng4+ {[%clk 0:00:07]} 35. Kg2 {[%clk 0:00:08]} 1-0


[Site "https://www.chess.com"]

[Event "Titled Tuesday Blitz April 25 Early 2023"]
[White "mjelcic"]
[Black "SashaKuzhilniy"]
[WhiteElo "2203"]
[BlackElo "2567"]
[Result "0-1"]
[Round "01"]
[TimeControl "180+2"]
[Date "2023.04.25"]
[WhiteClock "0:00:23"]
[BlackClock "0:00:12"]

1. c4 {[%clk 0:03:00]}  e5 {[%clk 0:02:58]} 2. Nc3 {[%clk 0:02:59]}  Nc6 {[%clk 0:02:58]} 3. g3 {[%clk 0:02:59]}  f5 {[%clk 0:02:57]} 4. Bg2 {[%clk 0:02:55]}  Nf6 {[%clk 0:02:57]} 5. d3 {[%clk 0:02:53]}  Bc5 {[%clk 0:02:50]} 6. Nf3 {[%clk 0:02:50]}  d6 {[%clk 0:02:45]} 7. O-O {[%clk 0:02:50]}  O-O {[%clk 0:02:44]} 8. a3 {[%clk 0:02:50]}  a5 {[%clk 0:02:43]} 9. Rb1 {[%clk 0:02:46]}  Qe8 {[%clk 0:02:38]} 10. Bg5 {[%clk 0:02:36]}  Qh5 {[%clk 0:02:37]} 11. Bxf6 {[%clk 0:02:30]}  Rxf6 {[%clk 0:02:34]} 12. e3 {[%clk 0:02:26]}  f4 {[%clk 0:01:38]} 13. exf4 {[%clk 0:02:26]}  Bg4 {[%clk 0:01:32]} 14. Ne4 {[%clk 0:01:40]}  Rh6 {[%clk 0:01:06]} 15. Neg5 {[%clk 0:01:09]}  exf4 {[%clk 0:00:45]} 16. h3 {[%clk 0:01:05]}  fxg3 {[%clk 0:00:33]} 17. d4 {[%clk 0:01:00]}  gxf2+ {[%clk 0:00:31]} 18. Rxf2 {[%clk 0:00:56]}  Bxf3 {[%clk 0:00:20]} 19. Nxf3 {[%clk 0:00:54]}  Ba7 {[%clk 0:00:20]} 20. Qd3 {[%clk 0:00:51]}  Rf8 {[%clk 0:00:19]} 21. Rd1 {[%clk 0:00:50]}  Rhf6 {[%clk 0:00:19]} 22. Rdf1 {[%clk 0:00:39]}  g6 {[%clk 0:00:17]} 23. c5 {[%clk 0:00:35]}  dxc5 {[%clk 0:00:17]} 24. d5 {[%clk 0:00:36]}  c4 {[%clk 0:00:17]} 25. Qxc4 {[%clk 0:00:34]}  Bxf2+ {[%clk 0:00:18]} 26. Rxf2 {[%clk 0:00:34]}  Ne5 {[%clk 0:00:17]} 27. Nxe5 {[%clk 0:00:22]}  Qxe5 {[%clk 0:00:15]} 28. d6+ {[%clk 0:00:21]}  Kh8 {[%clk 0:00:15]} 29. dxc7 {[%clk 0:00:21]}  Rxf2 {[%clk 0:00:12]} 30. c8=Q {[%clk 0:00:20]}  Qe1+ {[%clk 0:00:06]} 31. Kh2 {[%clk 0:00:20]}  Qe5+ {[%clk 0:00:06]} 32. Kg1 {[%clk 0:00:20]}  Qe1+ {[%clk 0:00:03]} 33. Kh2 {[%clk 0:00:20]}  Rxg2+ {[%clk 0:00:03]} 34. Kxg2 {[%clk 0:00:20]}  Qf2+ {[%clk 0:00:04]} 35. Kh1 {[%clk 0:00:20]}  Qf3+ {[%clk 0:00:04]} 36. Kh2 {[%clk 0:00:21]}  Rxc8 {[%clk 0:00:04]} 37. Qxc8+ {[%clk 0:00:20]}  Kg7 {[%clk 0:00:04]} 38. Qc7+ {[%clk 0:00:21]}  Kh6 {[%clk 0:00:05]} 39. Qc1+ {[%clk 0:00:20]}  g5 {[%clk 0:00:05]} 40. Qd2 {[%clk 0:00:18]}  Qf4+ {[%clk 0:00:05]} 41. Qxf4 {[%clk 0:00:19]}  gxf4 {[%clk 0:00:06]} 42. Kg2 {[%clk 0:00:19]}  Kg5 {[%clk 0:00:07]} 43. Kf3 {[%clk 0:00:20]}  Kf5 {[%clk 0:00:08]} 44. b4 {[%clk 0:00:20]}  axb4 {[%clk 0:00:08]} 45. axb4 {[%clk 0:00:21]}  b5 {[%clk 0:00:08]} 46. h4 {[%clk 0:00:20]}  h5 {[%clk 0:00:09]} 47. Kf2 {[%clk 0:00:20]}  Kg4 {[%clk 0:00:10]} 48. Ke2 {[%clk 0:00:21]}  Kxh4 {[%clk 0:00:10]} 49. Kf3 {[%clk 0:00:22]}  Kg5 {[%clk 0:00:11]} 50. Kf2 {[%clk 0:00:22]}  Kg4 {[%clk 0:00:11]} 51. Kg2 {[%clk 0:00:23]}  h4 {[%clk 0:00:12]} 0-1


[Site "https://www.chess.com"]